bitfinex/quotes_BTCUSD_20241010
["timestamp","ask_amount","ask_price","bid_price","bid_amount"]
[1728580671691,0.010816,60275.0,60274.0,0.2080453]
[1728580671692,0.176722,60275.0,60274.0,0.2080453]
[1728580671893,0.176722,60275.0,60274.0,0.009]
[1728580673343,0.010816,60275.0,60274.0,0.009]
[1728580673570,0.1805414,60275.0,60274.0,0.009]
[1728580673786,0.46437904,60275.0,60274.0,0.009]
[1728580674010,0.74714028,60275.0,60274.0,0.009]
[1728580674225,0.74714028,60275.0,60274.0,0.004]
[1728580674226,0.85054028,60275.0,60274.0,0.004]
[1728580674440,0.85554028,60275.0,60274.0,0.004]
[1728580674689,0.85554028,60275.0,60274.0,0.008]
[1728580674690,0.90583011,60275.0,60274.0,0.008]
[1728580675127,0.90583011,60275.0,60274.0,0.004]
[1728580675343,0.85554028,60275.0,60274.0,0.004]
[1728580675559,0.86454028,60275.0,60274.0,0.005]
[1728580675999,0.85554028,60275.0,60274.0,0.004]
[1728580676644,0.005,60268.0,60267.0,0.25058019]
[1728580676861,0.74134328,60268.0,60267.0,0.25058019]
[1728580677075,0.74134328,60268.0,60267.0,0.001632]
[1728580677336,0.82184328,60268.0,60267.0,0.001632]
[1728580677997,1.15764835,60268.0,60267.0,0.001632]
[1728580678228,0.58054964,60252.0,60245.0,0.001634]
[1728580678468,0.74138728,60252.0,60245.0,0.001634]
[1728580678933,0.265986,60246.0,60245.0,0.001634]
[1728580679143,0.74022368,60246.0,60245.0,0.001634]
[1728580679351,0.74140428,60246.0,60245.0,0.001634]
[1728580680881,0.44982364,60246.0,60245.0,0.001634]
[1728580681168,0.75540428,60246.0,60245.0,0.001634]
[1728580681592,0.74140428,60246.0,60245.0,0.001634]
[1728580681814,0.75240428,60246.0,60245.0,0.002634]
[1728580682050,0.76340428,60246.0,60245.0,0.002634]
[1728580682266,0.76340428,60246.0,60245.0,0.001634]
[1728580682267,0.75240428,60246.0,60245.0,0.001634]
[1728580682948,0.76640428,60246.0,60245.0,0.002634]
[1728580683386,0.75540428,60246.0,60245.0,0.002634]
[1728580683843,0.76940428,60246.0,60245.0,0.002634]
[1728580684063,0.75540428,60246.0,60245.0,0.002634]
[1728580684277,0.44582364,60246.0,60245.0,0.002634]
[1728580684495,0.45482364,60246.0,60245.0,0.002634]
[1728580684722,0.165986,60246.0,60245.0,0.001634]
[1728580684964,0.1698054,60246.0,60245.0,0.001634]
[1728580685171,0.1978054,60246.0,60245.0,0.001634]
[1728580685381,0.179986,60246.0,60245.0,0.001634]
[1728580685605,0.33064304,60246.0,60245.0,0.001634]
[1728580685870,0.41132364,60246.0,60245.0,0.001634]
[1728580686102,0.53732364,60246.0,60245.0,0.001634]
[1728580686326,0.53532364,60246.0,60245.0,0.001634]
[1728580686572,0.53432364,60246.0,60245.0,0.001634]
[1728580687004,0.53832364,60246.0,60245.0,0.001634]
[1728580687218,0.54032364,60246.0,60245.0,0.001634]
[1728580687430,0.53432364,60246.0,60245.0,0.001634]
[1728580687721,0.54832364,60246.0,60245.0,0.001634]
[1728580688191,0.56232364,60246.0,60245.0,0.001634]
[1728580688413,0.54832364,60246.0,60245.0,0.001634]
[1728580688832,0.56232364,60246.0,60245.0,0.001634]
[1728580690181,0.58833026,60246.0,60245.0,0.001634]
[1728580690631,0.59033026,60246.0,60245.0,0.001634]
[1728580691554,0.58833026,60246.0,60245.0,0.001634]
[1728580693043,0.50883026,60246.0,60245.0,0.001634]
[1728580694760,0.49483026,60246.0,60245.0,0.001634]
[1728580695254,0.48282364,60246.0,60245.0,0.001634]
[1728580695497,0.46882364,60246.0,60245.0,0.001634]
[1728580695707,0.48282364,60246.0,60245.0,0.001634]
[1728580695914,0.46882364,60246.0,60245.0,0.001634]
[1728580696211,0.48282364,60246.0,60245.0,0.001634]
[1728580696718,0.46882364,60246.0,60245.0,0.001634]
[1728580697218,0.45482364,60246.0,60245.0,0.001634]
[1728580697744,0.58879364,60246.0,60245.0,1e-06]
[1728580697989,0.57479364,60246.0,60245.0,1e-06]
[1728580698233,0.58779364,60246.0,60245.0,1e-06]
[1728580698512,0.60179364,60246.0,60245.0,1e-06]
[1728580698776,0.57479364,60246.0,60245.0,1e-06]
[1728580699012,0.60479364,60246.0,60245.0,1e-06]
[1728580699519,0.48282364,60246.0,60245.0,1e-06]
[1728580699747,0.60883127,60246.0,60245.0,1e-06]
[1728580700977,1.09089127,60246.0,60245.0,1e-06]
[1728580701468,0.90020927,60246.0,60245.0,1e-06]
[1728580702167,0.90220927,60246.0,60245.0,1e-06]
[1728580702898,0.90220927,60246.0,60227.0,0.44644819]
[1728580702899,0.289035,60228.0,60227.0,0.24894819]
[1728580703167,0.57561564,60228.0,60227.0,0.24894819]
[1728580703443,0.57561564,60228.0,60218.0,0.191]
[1728580703444,0.16606,60219.0,60218.0,0.191]
[1728580703721,0.1698794,60219.0,60218.0,0.191]
[1728580704703,0.16606,60219.0,60218.0,0.191]
[1728580704917,0.166071,60215.0,60214.0,0.1802]
[1728580705556,0.334122,60219.0,60214.0,0.1802]
[1728580705557,0.002,60219.0,60216.0,0.332136]
[1728580705781,0.166044,60225.0,60221.0,0.498162]
[1728580706002,0.58103419,60226.0,60219.0,0.184]
[1728580706219,0.58103419,60226.0,60221.0,0.166054]
[1728580706220,0.166044,60225.0,60221.0,0.166054]
[1728580706437,0.332089,60225.0,60219.0,0.184]
[1728580706654,0.166047,60224.0,60221.0,0.166053]
[1728580706879,0.166047,60224.0,60220.0,0.166055]
[1728580707278,0.166047,60224.0,60219.0,0.350059]
[1728580707279,0.166051,60223.0,60219.0,0.350059]
[1728580707520,0.166051,60223.0,60220.0,0.166057]
[1728580707763,0.34894819,60235.0,60221.0,0.332108]
[1728580707981,0.166043,60226.0,60222.0,0.166051]
[1728580708228,0.166043,60226.0,60220.0,0.332114]
[1728580708229,0.166047,60224.0,60221.0,0.166054]
[1728580708454,0.166046,60224.0,60220.0,0.41500419]
[1728580708889,0.001,60223.0,60220.0,0.166056]
[1728580709106,0.16605,60223.0,60220.0,0.166056]
[1728580709322,0.001,60224.0,60220.0,0.166057]
[1728580709570,0.166052,60222.0,60219.0,0.35006]
[1728580709796,0.33209,60225.0,60219.0,0.184]
[1728580710008,0.16605,60223.0,60219.0,0.350059]
[1728580710233,0.26605,60223.0,60219.0,0.350059]
[1728580710436,0.166056,60221.0,60219.0,0.184]
[1728580710941,0.166057,60220.0,60219.0,0.184]
[1728580711177,0.166052,60222.0,60219.0,0.350059]
[1728580711637,0.166052,60222.0,60219.0,0.184]
[1728580711874,0.266051,60223.0,60219.0,0.184]
[1728580712090,0.1,60223.0,60221.0,0.166055]
[1728580712303,0.1,60223.0,60221.0,0.332109]
[1728580712526,0.1,60223.0,60222.0,0.41500019]
[1728580712824,0.25394819,60247.0,60227.0,0.002]
[1728580712825,0.24894819,60234.0,60227.0,0.002]
[1728580713012,0.24894819,60247.0,60238.0,0.279]
[1728580713013,0.24894819,60239.0,60238.0,0.279]
[1728580713234,0.3358074,60243.0,60238.0,0.279]
[1728580713235,0.165997,60243.0,60239.0,0.166004]
[1728580713446,0.0046364,60246.0,60238.0,0.472905]
[1728580713675,0.16599,60245.0,60241.0,0.165999]
[1728580713894,0.166804,60246.0,60242.0,0.165996]
[1728580714565,0.166,60241.0,60238.0,0.279]
[1728580714803,0.165998,60242.0,60238.0,0.279]
[1728580715458,0.165992,60244.0,60238.0,0.611012]
[1728580715671,0.165992,60244.0,60241.0,0.003]
[1728580715918,0.165989,60245.0,60241.0,0.003]
[1728580716130,0.165989,60245.0,60241.0,0.165998]
[1728580716350,0.332791,60246.0,60238.0,0.73621162]
[1728580716567,0.001,60242.0,60241.0,0.165999]
[1728580717024,0.166804,60246.0,60240.0,0.332004]
[1728580717025,0.000817,60246.0,60243.0,0.165992]
[1728580717245,0.000817,60246.0,60245.0,0.165988]
[1728580717473,0.000817,60246.0,60245.0,0.1693074]
[1728580718358,0.165988,60245.0,60244.0,0.2648]
[1728580719515,0.000817,60246.0,60244.0,0.2668]
[1728580719747,0.165988,60245.0,60244.0,0.2698]
[1728580720188,0.000817,60246.0,60244.0,0.2698]
[1728580720408,0.165988,60245.0,60244.0,0.2698]
[1728580720658,0.000817,60246.0,60244.0,0.2698]
[1728580720918,0.165988,60245.0,60244.0,0.2698]
[1728580721180,0.000817,60246.0,60244.0,0.2698]
[1728580721181,0.166803,60246.0,60244.0,0.2698]
[1728580721681,0.165988,60245.0,60244.0,0.2698]
[1728580722408,0.165988,60245.0,60244.0,0.2648]
[1728580722626,0.000817,60246.0,60244.0,0.2658]
[1728580722863,0.000817,60246.0,60244.0,0.2678]
[1728580723099,0.000817,60246.0,60244.0,0.2668]
[1728580723348,0.000817,60246.0,60244.0,0.2688]
[1728580723822,0.000817,60246.0,60244.0,0.604782]
[1728580723823,0.000817,60246.0,60245.0,0.167988]
[1728580724600,0.000817,60246.0,60245.0,0.16919605]
[1728580724843,0.000817,60246.0,60245.0,0.59373369]
[1728580725090,0.000817,60246.0,60245.0,0.59752564]
[1728580725354,0.000817,60246.0,60245.0,0.75833225]
[1728580725854,0.000817,60246.0,60245.0,0.76033225]
[1728580726069,0.001817,60246.0,60245.0,0.81697177]
[1728580726286,0.001817,60246.0,60245.0,0.77869516]
[1728580726500,0.002817,60246.0,60245.0,0.78469516]
[1728580728036,0.002817,60246.0,60245.0,0.61685752]
[1728580728522,0.002817,60246.0,60245.0,0.45605091]
[1728580729524,0.002817,60246.0,60245.0,0.45805091]
[1728580730026,0.002817,60246.0,60245.0,0.45605091]
[1728580730288,0.002817,60246.0,60245.0,0.29006291]
[1728580730553,0.002817,60246.0,60245.0,0.45605091]
[1728580730808,0.002817,60246.0,60245.0,0.29006291]
[1728580731064,0.002817,60246.0,60245.0,0.45605091]
[1728580731317,0.002817,60246.0,60245.0,0.5682537]
[1728580731777,0.002817,60246.0,60245.0,0.45605091]
[1728580732838,0.002817,60246.0,60245.0,0.45805091]
[1728580733354,0.002817,60246.0,60245.0,0.62388855]
[1728580735082,0.002817,60246.0,60245.0,0.45605091]
[1728580735632,0.002817,60246.0,60245.0,0.29006291]
[1728580736163,0.002817,60246.0,60245.0,0.45605091]
[1728580739646,0.168803,60246.0,60245.0,0.29006291]
[1728580740143,0.168803,60246.0,60245.0,0.02636291]
[1728580740900,0.1716224,60246.0,60245.0,0.02036291]
[1728580741153,0.166803,60246.0,60245.0,0.01136291]
[1728580741394,0.1716224,60246.0,60245.0,0.008]
[1728580741637,0.33246004,60246.0,60245.0,0.008]
[1728580741883,0.166024,60232.0,60231.0,0.0825]
[1728580742416,0.332023,60237.0,60231.0,0.01151814]
[1728580742676,0.166024,60232.0,60231.0,0.01151814]
[1728580743149,0.166024,60232.0,60231.0,0.01751814]
[1728580743414,0.167024,60232.0,60231.0,0.01751814]
[1728580743684,0.1698434,60232.0,60231.0,0.01151814]
[1728580743952,0.1698434,60232.0,60228.0,0.01735118]
[1728580743953,0.3358694,60232.0,60228.0,0.01735118]
[1728580744213,0.166032,60229.0,60228.0,0.01735118]
[1728580744974,0.1698514,60229.0,60228.0,0.02269067]
[1728580745229,0.1698514,60229.0,60228.0,0.00533949]
[1728580745230,0.33068904,60229.0,60228.0,0.00533949]
[1728580745458,0.33068904,60229.0,60227.0,0.001634]
[1728580745459,0.166035,60228.0,60227.0,0.001634]
[1728580745723,0.33069204,60228.0,60227.0,0.001634]
[1728580745984,0.32687264,60228.0,60227.0,0.001634]
[1728580746219,0.166035,60228.0,60227.0,0.001634]
[1728580746456,0.166035,60228.0,60227.0,0.078534]
[1728580746940,0.166035,60228.0,60227.0,0.002634]
[1728580747966,0.166035,60228.0,60227.0,0.005634]
[1728580748427,0.166035,60228.0,60227.0,0.002634]
[1728580748677,0.1698544,60228.0,60227.0,0.002634]
[1728580748945,0.168035,60228.0,60227.0,0.002634]
[1728580749183,0.168035,60228.0,60227.0,0.001634]
[1728580749455,0.168035,60228.0,60227.0,0.005634]
[1728580749722,0.168035,60228.0,60227.0,0.001634]
[1728580749963,0.168035,60228.0,60227.0,0.002634]
[1728580750254,0.168035,60228.0,60227.0,0.001634]
[1728580750492,0.170035,60228.0,60227.0,0.001634]
[1728580750746,0.168035,60228.0,60227.0,0.001634]
[1728580750995,0.166035,60228.0,60227.0,0.001634]
[1728580751539,0.166035,60228.0,60227.0,0.002634]
[1728580752019,0.32687264,60228.0,60227.0,0.001634]
[1728580752378,0.45487264,60228.0,60227.0,0.001634]
[1728580752591,0.53062359,60228.0,60227.0,0.001634]
[1728580752841,0.60608238,60228.0,60227.0,0.001634]
[1728580753072,1.06781164,60228.0,60227.0,0.001634]
[1728580753307,1.06781164,60228.0,60223.0,0.001634]
[1728580753308,0.48716063,60224.0,60223.0,0.001634]
[1728580753574,0.64599827,60224.0,60223.0,0.001634]
[1728580754533,0.74155771,60224.0,60223.0,0.001634]
[1728580755655,0.75555771,60224.0,60223.0,0.002634]
[1728580756658,0.76955771,60224.0,60223.0,0.002634]
[1728580756902,0.75555771,60224.0,60223.0,0.002634]
[1728580757142,0.44088364,60224.0,60223.0,0.002634]
[1728580757393,0.45488364,60224.0,60223.0,0.002634]
[1728580758853,0.44088364,60224.0,60223.0,0.002634]
[1728580759338,0.43688364,60224.0,60223.0,0.002634]
[1728580759822,0.42688364,60224.0,60223.0,0.001634]
[1728580760100,0.42888364,60224.0,60223.0,0.001634]
[1728580760326,0.45188364,60224.0,60223.0,0.001634]
[1728580760986,0.46588364,60224.0,60223.0,0.002634]
[1728580761418,0.47088364,60224.0,60223.0,0.002634]
[1728580761637,0.55208364,60224.0,60223.0,0.002634]
[1728580762274,0.55008364,60224.0,60223.0,0.002634]
[1728580762767,1.26408364,60224.0,60223.0,0.003634]
[1728580762984,1.23608364,60224.0,60223.0,0.001634]
[1728580763199,1.25208364,60224.0,60223.0,0.002634]
[1728580763890,1.25008364,60224.0,60223.0,0.002634]
[1728580764102,1.26408364,60224.0,60223.0,0.003634]
[1728580765186,0.76955771,60224.0,60223.0,0.003634]
[1728580769777,0.76955771,60224.0,60206.0,0.167727]
[1728580769778,0.166093,60207.0,60206.0,0.001632]
[1728580769992,0.45658647,60207.0,60206.0,0.001632]
[1728580770221,0.45276707,60207.0,60206.0,0.001632]
[1728580770910,0.32793064,60207.0,60206.0,0.001632]
[1728580771597,0.32693064,60207.0,60206.0,0.001632]
[1728580771821,0.32693064,60207.0,60206.0,0.002632]
[1728580772720,0.32793064,60207.0,60206.0,0.002632]
[1728580773145,0.32793064,60207.0,60206.0,0.00567201]
[1728580773384,0.32693064,60207.0,60206.0,0.001632]
[1728580773598,0.32793064,60207.0,60206.0,0.00467201]
[1728580773818,0.32893064,60207.0,60206.0,0.00467201]
[1728580774031,0.32793064,60207.0,60206.0,0.00467201]
[1728580774293,0.32893064,60207.0,60206.0,0.00467201]
[1728580774732,0.32793064,60207.0,60206.0,0.00467201]
[1728580775168,0.32893064,60207.0,60206.0,0.00467201]
[1728580775614,0.32893064,60207.0,60206.0,0.001632]
[1728580776492,0.52005812,60207.0,60206.0,0.001632]
[1728580777208,0.64305812,60207.0,60206.0,0.001632]
[1728580777912,0.45693064,60207.0,60206.0,0.001632]
[1728580778129,0.64805812,60207.0,60206.0,0.001632]
[1728580778810,0.64705812,60207.0,60206.0,0.001632]
[1728580779744,0.64805812,60207.0,60206.0,0.001632]
[1728580779985,0.65305812,60207.0,60206.0,0.002632]
[1728580780205,0.29411,60201.0,60200.0,4e-05]
[1728580780439,0.29411,60201.0,60187.0,0.001634]
[1728580780440,0.166137,60191.0,60187.0,0.001634]
[1728580780658,0.54110212,60191.0,60187.0,0.001634]
[1728580780874,0.54110212,60191.0,60190.0,0.00472577]
[1728580781111,0.54110212,60191.0,60190.0,0.001632]
[1728580781756,0.54910212,60191.0,60190.0,0.001632]
[1728580782713,0.64910212,60191.0,60190.0,0.001632]
[1728580782976,0.65410212,60191.0,60190.0,0.001632]
[1728580783216,0.68213227,60191.0,60190.0,0.001632]
[1728580783928,0.68213227,60191.0,60190.0,0.002632]
[1728580784175,0.6820896,60191.0,60190.0,0.002632]
[1728580784467,0.6820896,60191.0,60190.0,1e-06]
[1728580784468,1.3880896,60191.0,60190.0,1e-06]
[1728580784710,1.57459606,60191.0,60190.0,0.001001]
[1728580784970,1.56059606,60191.0,60190.0,0.001001]
[1728580785205,1.54659606,60191.0,60190.0,1e-06]
[1728580785446,0.173154,60185.0,60181.0,0.00163]
[1728580785675,1.44784498,60185.0,60181.0,0.00163]
[1728580785914,1.44402558,60185.0,60181.0,0.00163]
[1728580786802,0.58121494,60175.0,60170.0,0.24894819]
[1728580787030,0.74205258,60175.0,60170.0,0.24894819]
[1728580787698,0.74205258,60175.0,60166.0,0.001634]
[1728580787699,0.271204,60167.0,60166.0,0.001634]
[1728580787913,0.74589498,60167.0,60166.0,0.001634]
[1728580788124,0.74207558,60167.0,60166.0,0.001634]
[1728580788861,0.47629594,60146.0,60145.0,0.001634]
[1728580789300,0.57629594,60146.0,60145.0,0.00716043]
[1728580789518,0.57629594,60146.0,60145.0,0.001634]
[1728580790683,0.45009964,60146.0,60145.0,0.001634]
[1728580790951,0.45409964,60146.0,60145.0,0.001634]
[1728580793524,0.43109964,60146.0,60145.0,0.001634]
[1728580794386,0.42909964,60146.0,60145.0,0.001634]
[1728580794600,0.45209964,60146.0,60145.0,0.001634]
[1728580795045,0.45409964,60146.0,60145.0,0.001634]
[1728580796352,0.35409964,60146.0,60145.0,0.001634]
[1728580796558,0.35409964,60146.0,60145.0,0.184634]
[1728580796767,0.32909964,60146.0,60145.0,0.184634]
[1728580797186,0.35409964,60146.0,60145.0,0.184634]
[1728580797649,0.35009964,60146.0,60145.0,0.184634]
[1728580797916,0.001,60146.0,60145.0,0.184634]
[1728580798161,0.002,60146.0,60145.0,0.184634]
[1728580798396,0.002,60146.0,60145.0,0.1901711]
[1728580798397,0.001,60146.0,60145.0,0.1901711]
[1728580798639,0.168262,60146.0,60145.0,0.2666711]
[1728580799116,0.169262,60146.0,60145.0,0.2676711]
[1728580799833,0.003,60146.0,60145.0,0.2676711]
[1728580800344,0.003,60146.0,60145.0,0.4329351]
[1728580800345,0.002,60146.0,60145.0,0.4329351]
[1728580800585,0.41518919,60154.0,60148.0,0.332508]
[1728580800871,0.24894819,60154.0,60152.0,0.166244]
[1728580801133,0.24894819,60163.0,60155.0,0.332471]
[1728580801134,0.23159819,60163.0,60155.0,0.332471]
[1728580801424,0.16083764,60162.0,60156.0,0.332467]
[1728580801667,0.4776,60176.0,60158.0,0.0829]
[1728580801668,0.332422,60165.0,60158.0,0.0829]
[1728580801885,0.332422,60165.0,60158.0,0.415357]
[1728580801886,0.166215,60163.0,60158.0,0.415357]
[1728580802102,0.166215,60163.0,60159.0,0.17232481]
[1728580802318,0.332409,60167.0,60159.0,0.00609881]
[1728580802319,0.166213,60164.0,60159.0,0.00609881]
[1728580802563,0.16621,60165.0,60161.0,0.166219]
[1728580802780,0.005,60180.0,60159.0,0.09389475]
[1728580802781,0.72154819,60176.0,60159.0,0.00609881]
[1728580803000,0.16083764,60175.0,60164.0,0.0829]
[1728580803249,0.332383,60172.0,60164.0,0.0809]
[1728580803490,0.332383,60172.0,60165.0,0.00605095]
[1728580803950,0.166187,60174.0,60169.0,0.166195]
[1728580803954,0.166187,60174.0,60168.0,0.1662]
[1728580803955,0.33237,60174.0,60168.0,0.1662]
[1728580804166,0.24894819,60184.0,60172.0,0.1887]
[1728580804167,0.332322,60183.0,60172.0,0.1887]
[1728580804384,0.24894819,60184.0,60172.0,0.1887]
[1728580804385,0.011,60176.0,60172.0,0.1887]
[1728580804597,0.011,60176.0,60173.0,0.00598785]
[1728580804820,0.011,60176.0,60172.0,0.1887]
[1728580804821,0.166187,60173.0,60172.0,0.1887]
[1728580805047,0.166196,60170.0,60167.0,0.166203]
[1728580805285,0.166196,60170.0,60164.0,0.413321]
[1728580805286,0.1662,60169.0,60168.0,0.001]
[1728580805506,0.336385,60172.0,60169.0,0.166197]
[1728580805507,0.004,60172.0,60169.0,0.166197]
[1728580805725,0.004,60172.0,60171.0,0.166193]
[1728580805941,0.004,60172.0,60171.0,0.2748]
[1728580806159,0.004,60172.0,60171.0,0.28045406]
[1728580806382,0.16619,60172.0,60171.0,0.28045406]
[1728580807488,0.166186,60174.0,60171.0,0.28645406]
[1728580807717,0.16619,60172.0,60171.0,0.28645406]
[1728580807944,0.33237,60174.0,60171.0,0.28045406]
[1728580808188,0.332335,60181.0,60171.0,0.2788]
[1728580808407,0.166165,60181.0,60178.0,0.166173]
[1728580808627,0.333132,60185.0,60173.0,0.002]
[1728580808628,0.000818,60185.0,60174.0,0.00332333]
[1728580808842,0.166168,60180.0,60177.0,0.166175]
[1728580809109,0.333128,60185.0,60175.0,0.33436]
[1728580809110,0.000818,60185.0,60175.0,0.00763197]
[1728580809330,0.000818,60185.0,60184.0,0.166157]
[1728580809544,0.000818,60185.0,60179.0,0.332339]
[1728580809764,0.166972,60185.0,60184.0,0.00558227]
[1728580809980,0.166972,60185.0,60180.0,0.332332]
[1728580809981,0.000818,60185.0,60182.0,0.332322]
[1728580810200,0.000818,60185.0,60184.0,0.166157]
[1728580810421,0.166973,60185.0,60183.0,0.00558779]
[1728580810638,0.166973,60185.0,60184.0,0.00558227]
[1728580811065,0.166973,60185.0,60179.0,0.332336]
[1728580811278,0.166159,60184.0,60182.0,0.003]
[1728580811765,0.166159,60184.0,60183.0,0.00558779]
[1728580812453,0.000818,60185.0,60184.0,0.2697]
[1728580812676,0.000818,60185.0,60184.0,0.59569464]
[1728580812897,0.000818,60185.0,60184.0,0.60127691]
[1728580813117,0.000818,60185.0,60184.0,0.60327691]
[1728580813335,0.000818,60185.0,60184.0,0.76408352]
[1728580813557,0.000818,60185.0,60184.0,0.76208352]
[1728580813983,0.000818,60185.0,60184.0,0.77097197]
[1728580814635,0.001818,60185.0,60184.0,0.77597197]
[1728580815548,0.001818,60185.0,60184.0,0.78097197]
[1728580815776,0.001818,60185.0,60184.0,0.72016536]
[1728580815991,0.24894819,60200.0,60199.0,0.2636]
[1728580816207,0.24894819,60200.0,60199.0,0.429715]
[1728580816434,0.166108,60202.0,60199.0,0.27486874]
[1728580816657,0.332182,60208.0,60199.0,0.27486874]
[1728580816885,0.166112,60200.0,60199.0,0.27486874]
[1728580817326,0.001,60200.0,60199.0,0.27486874]
[1728580817970,0.001,60200.0,60199.0,0.44098374]
[1728580818420,0.001,60200.0,60199.0,0.27486874]
[1728580818631,0.001,60200.0,60199.0,0.44098374]
[1728580818842,0.001,60200.0,60199.0,0.27486874]
[1728580819330,0.001,60200.0,60199.0,0.44098374]
[1728580820005,0.001,60200.0,60199.0,0.27486874]
[1728580820218,0.001,60200.0,60199.0,0.44098374]
[1728580820425,0.001,60200.0,60199.0,0.27486874]
[1728580820852,0.167112,60200.0,60199.0,0.27486874]
[1728580821280,0.166112,60200.0,60199.0,0.01126874]
[1728580821489,0.0038194,60201.0,60191.0,0.2778]
[1728580821728,0.332244,60197.0,60191.0,0.2778]
[1728580821971,0.166131,60194.0,60192.0,0.01222445]
[1728580822199,0.166132,60193.0,60192.0,0.01222445]
[1728580822414,0.332253,60195.0,60192.0,0.01222445]
[1728580822643,0.001,60200.0,60192.0,0.01222445]
[1728580822891,0.166115,60199.0,60196.0,0.166122]
[1728580823104,0.167113,60200.0,60196.0,0.166122]
[1728580823350,0.167113,60200.0,60193.0,0.332263]
[1728580823351,0.166116,60199.0,60193.0,0.332263]
[1728580823597,0.332198,60205.0,60191.0,0.2778]
[1728580823598,0.332198,60205.0,60197.0,0.01215806]
[1728580823849,0.000818,60200.0,60199.0,0.166115]
[1728580824868,0.000818,60200.0,60199.0,0.44803699]
[1728580825126,0.000818,60200.0,60199.0,0.59679514]
[1728580825406,0.000818,60200.0,60199.0,0.76313224]
[1728580825638,0.001818,60200.0,60199.0,1.01708043]
[1728580825880,0.41501119,60218.0,60213.0,0.2618]
[1728580826120,0.24894819,60218.0,60215.0,0.16607]
[1728580826361,0.000817,60227.0,60214.0,0.3915438]
[1728580826362,0.000817,60227.0,60214.0,0.1714897]
[1728580826597,0.166059,60220.0,60216.0,0.17147367]
[1728580826852,0.166059,60220.0,60217.0,0.076763]
[1728580827077,0.000817,60223.0,60217.0,0.08216315]
[1728580827296,0.332106,60222.0,60217.0,0.00540015]
[1728580827529,0.000817,60223.0,60217.0,0.00540015]
[1728580827746,0.000817,60223.0,60222.0,0.166052]
[1728580827747,0.010817,60223.0,60222.0,0.166052]
[1728580827991,0.000817,60223.0,60222.0,0.166052]
[1728580828200,0.166063,60218.0,60216.0,0.001]
[1728580828416,0.000817,60223.0,60212.0,0.332154]
[1728580828417,0.166062,60219.0,60217.0,0.24994819]
[1728580828628,0.166062,60219.0,60214.0,0.332146]
[1728580828629,0.166063,60218.0,60215.0,0.17257053]
[1728580828839,0.332105,60222.0,60215.0,0.17257053]
[1728580829047,0.166061,60219.0,60217.0,0.001]
[1728580829290,0.332116,60220.0,60218.0,0.00647445]
[1728580829507,0.16606,60219.0,60218.0,0.00647445]
[1728580829714,0.16606,60219.0,60217.0,0.001]
[1728580829715,0.166063,60218.0,60217.0,0.001]
[1728580830361,0.166088,60209.0,60208.0,0.24894819]
[1728580830800,0.166088,60209.0,60208.0,0.25439799]
[1728580831007,0.166088,60209.0,60207.0,0.0809]
[1728580831008,0.16083764,60217.0,60207.0,0.246992]
[1728580831231,0.166088,60209.0,60208.0,0.0054498]
[1728580831647,0.332147,60215.0,60208.0,0.0054498]
[1728580831860,0.167088,60209.0,60208.0,0.0124498]
[1728580833161,0.33217,60211.0,60207.0,0.0809]
[1728580833378,0.16609,60208.0,60207.0,0.0809]
[1728580834009,0.166074,60214.0,60211.0,0.166081]
[1728580834229,0.166068,60217.0,60213.0,0.166075]
[1728580834525,0.166068,60217.0,60214.0,0.166072]
[1728580834735,0.332125,60219.0,60214.0,0.0054167]
[1728580834948,0.16606,60219.0,60215.0,0.45310494]
[1728580835187,0.166063,60218.0,60215.0,0.45310494]
[1728580835395,0.166063,60218.0,60215.0,0.166071]
[1728580835609,0.166071,60215.0,60214.0,0.0054167]
[1728580836048,0.166077,60213.0,60210.0,0.166084]
[1728580836288,0.332143,60215.0,60208.0,0.41503819]
[1728580836511,0.166082,60212.0,60208.0,0.41503819]
[1728580836716,0.166083,60211.0,60207.0,0.246992]
[1728580837199,0.003,60219.0,60207.0,0.0809]
[1728580837456,0.003,60219.0,60208.0,0.332179]
[1728580837701,0.166081,60212.0,60209.0,0.166086]
[1728580837932,0.166081,60212.0,60209.0,0.17153028]
[1728580838663,0.166071,60215.0,60212.0,0.166079]
[1728580838948,0.166075,60214.0,60213.0,0.00542221]
[1728580839505,0.166068,60216.0,60213.0,0.166075]
[1728580839745,0.166068,60217.0,60214.0,0.166074]
[1728580840025,0.000817,60223.0,60214.0,0.28703394]
[1728580840273,0.004,60219.0,60215.0,0.1972]
[1728580840513,0.004,60219.0,60218.0,0.166063]
[1728580840841,0.332918,60223.0,60218.0,0.247363]
[1728580841079,0.000817,60223.0,60218.0,0.36833394]
[1728580841356,0.000817,60223.0,60218.0,0.0813]
[1728580841611,0.000817,60223.0,60215.0,0.1972]
[1728580841612,0.16083764,60222.0,60215.0,0.1972]
[1728580841853,0.16083764,60222.0,60206.0,0.2622]
[1728580841854,0.166085,60210.0,60206.0,0.2622]
[1728580842671,0.332171,60210.0,60206.0,0.2622]
[1728580842938,0.24894819,60221.0,60206.0,0.2622]
[1728580842939,0.166093,60207.0,60206.0,0.2622]
[1728580843438,0.333174,60210.0,60206.0,0.2622]
[1728580843674,0.166093,60207.0,60206.0,0.2622]
[1728580844154,0.001,60210.0,60206.0,0.2622]
[1728580844409,0.166089,60209.0,60206.0,0.2622]
[1728580844651,0.001,60210.0,60209.0,0.166088]
[1728580844891,0.166074,60214.0,60209.0,0.166088]
[1728580845134,0.166077,60213.0,60209.0,0.166088]
[1728580845371,0.332153,60214.0,60209.0,0.166088]
[1728580845611,0.16083764,60220.0,60210.0,0.332169]
[1728580845612,0.49295564,60220.0,60210.0,0.332169]
[1728580845864,0.332057,60231.0,60211.0,0.00332134]
[1728580845865,0.332124,60219.0,60211.0,0.00332134]
[1728580846095,0.166069,60216.0,60213.0,0.166075]
[1728580846369,0.166069,60216.0,60211.0,0.00332134]
[1728580846370,0.166082,60211.0,60209.0,0.005]